Cogmind - Beta 16.1 @@@ ROGUE MODE // 2026.04.14 @ 20:51:08 Player: Selene Result: Self-destructed Performance ------------- Evolutions (2) 1000 Regions Visited (5) 1000 Robots Destroyed (24) 120 Value Destroyed (577) 577 Prototype IDs (23) 460 Alien Tech Used (0) 0 Bonus (375) 375 TOTAL SCORE: 3532 Bonus ------- Follower Combat Kills 75 Aligned with FarCom 300 Cogmind --------- Core Integrity 455/550 Matter 221/300 Energy 159/160 System Corruption 0% Temperature Cool (0) Movement Treading (240) Ox1 Location -8/Materials Parts ------- > --- POWER (1) -------- Light Nuclear Core > --- PROPULSION (3) --- Light Treads > --- UTILITY (5) ------ Cooling System Large Storage Unit Seismic Detector Utility Shielding Light Armor Plating > --- WEAPON (2) ------- Medium Laser Light Assault Rifle > --- INVENTORY (15) --- Light Nuclear Core Light Angular Momentum Engine Carbon-fiber Leg Advanced Heat Sink High-capacity Storage Unit High-capacity Matter Pod (200) Improved Signal Interpreter Hacking Suite Beamcaster Light Assault Rifle Heavy Assault Rifle Grenade Launcher Field Lobotomy Kit (5) Plasma Cutter Heavy Mace Peak State ------------ > --- POWER ------------ Light Nuclear Core > --- PROPULSION ------- Light Treads Light Treads > --- UTILITY ---------- Improved Heat Sink Cooling System Large Storage Unit Seismic Detector Utility Shielding > --- WEAPON ----------- Medium Laser Heavy Assault Rifle > --- INVENTORY -------- Light Nuclear Core Light Angular Momentum Engine Carbon-fiber Leg Advanced Heat Sink High-capacity Storage Unit High-capacity Matter Pod Improved Signal Interpreter Hacking Suite Beamcaster Light Assault Rifle Light Assault Rifle Grenade Launcher Field Lobotomy Kit Plasma Cutter Heavy Mace [Rating: 20] Favorites ----------- Power Light Ion Engine Engine Light Ion Engine Power Core Light Nuclear Core Propulsion Light Treads Treads Light Treads Utility Small Storage Unit Device Seismic Detector Storage Small Storage Unit Protection Utility Shielding Weapon Light Assault Rifle Energy Gun Small Laser Ballistic Gun Light Assault Rifle Special Weapon Plasma Cutter Build | -11 -10 -10 -10 -9 -8 ------- Run | Yrd Mat Min Exi Min Mat Slots Evolved 4 | . . . . . 4 Power . | . . . . . . Propulsion 1 | . . . . . 1 Utility 3 | . . . . . 3 Weapon . | . . . . . . Parts Attached 25 | 8 . 9 1 2 5 Power 5 | 1 . 3 . . 1 Engine 4 | 1 . 3 . . . Core 1 | . . . . . 1 Reactor . | . . . . . . Propulsion 3 | 2 . . . . 1 Treads 3 | 2 . . . . 1 Leg . | . . . . . . Wheel . | . . . . . . Hover . | . . . . . . Flight . | . . . . . . Utility 8 | 3 . 2 1 . 2 Device 4 | 2 . 1 . . 1 Storage 2 | 1 . . 1 . . Processor . | . . . . . . Hackware . | . . . . . . Protection 2 | . . 1 . . 1 Artifact . | . . . . . . Weapon 9 | 2 . 4 . 2 1 Energy Gun 3 | 1 . 2 . . . Energy Cannon . | . . . . . . Ballistic Gun 5 | 1 . 2 . 2 . Ballistic Cannon . | . . . . . . Launcher . | . . . . . . Special Weapon 1 | . . . . . 1 Impact Weapon . | . . . . . . Slashing Weapon . | . . . . . . Piercing Weapon . | . . . . . . Special Melee Weapon . | . . . . . . Unidentified Prototypes . | . . . . . . Parts Lost 6 | . . 2 . . 4 Power 2 | . . 1 . . 1 Propulsion 2 | . . . . . 2 Utility . | . . . . . . Weapon 2 | . . 1 . . 1 Highest Loss Streak 2 | . . 2 . . 2 To Critical Strikes . | . . . . . . Average Backups 9 | 2 5 7 10 13 14 Power . | . . . 1 1 1 Propulsion 1 | 1 2 1 1 1 1 Utility 3 | . 2 3 3 4 4 Weapon 3 | . 1 2 4 5 5 Tool/Special . | . . . . . . Unused Backups 21 | . . 7 . 1 13 Power 3 | . . 1 . . 2 Propulsion 5 | . . 4 . . 1 Utility 7 | . . 1 . . 6 Weapon 5 | . . 1 . 1 3 Tool/Special 1 | . . . . . 1 Average Slot Usage (%) 90 | . 100 99 73 100 79 Engine 12 | . 14 13 14 14 5 Treads 25 | . 28 28 28 28 14 Device 14 | . 14 12 14 14 18 Storage 12 | . 14 14 14 14 9 Protection 3 | . . 1 . . 11 Energy Gun 4 | . 14 5 . . 4 Ballistic Gun 15 | . 14 22 2 28 13 Peak Build Rating 20 | 9 8 18 15 14 20 Average Rating 11 | 5 7 11 8 13 16 On Entrance 8 | . 7 8 10 11 14 Avg Prop Armor Cover (%) . | . . . . . . Naked Turns . | . . . . . . Heaviest Build 37 | 11 11 21 26 30 37 Greatest Support 40 | 40 40 40 40 40 40 Greatest Overweight (x) 11 | . . . . . 11 Average Overweight (x) . | . . . . . . Largest Inventory Capacity 15 | 8 8 8 15 15 15 Average Capacity 10 | 7 8 8 13 15 15 Most Carried 15 | 4 8 8 12 15 15 Average Carried 9 | 2 5 7 10 13 14 Final Capacity 15 | 8 8 8 15 15 15 Final Carried 15 | 3 8 8 10 15 15 Class Distribution -------------------- 84% | Mutant 15% | Scavenger-Mutant Dominant Class ---------------- Mutant | -10/Materials Mutant | -10/Mines Mutant | -10/Exiles Mutant | -9/Mines Mutant | -8/Materials Resources | -11 -10 -10 -10 -9 -8 ----------- Run | Yrd Mat Min Exi Min Mat Matter Collected 871 | 286 59 240 46 31 209 Remotely . | . . . . . . Salvage Created 832 | 116 143 169 . . 404 Parts 45 | 7 7 11 . . 20 Haulers Intercepted . | . . . . . . Recyclers Shooed 3 | 1 . 1 . . 1 Parts Field Recycled . | . . . . . . Retrieved Matter . | . . . . . . Parts Self-Destructed . | . . . . . . Prevented . | . . . . . . Parts Restored . | . . . . . . Kills | -11 -10 -10 -10 -9 -8 ------- Run | Yrd Mat Min Exi Min Mat Combat Hostiles Destroyed 22 | . 6 9 . . 7 Guns 22 | . 6 9 . . 7 Classes Destroyed 9 | 2 2 1 . . 4 Worker 1 | . . . . . 1 Tunneler 2 | 2 . . . . . Recycler 1 | 1 . . . . . Watcher 1 | . . . . . 1 Swarmer 9 | . 4 5 . . . Grunt 8 | . 2 1 . . 5 Brawler 1 | . . . . . 1 Sentry 1 | . . . . . 1 Assembled 3 | . . 3 . . . Best Kill Streak 6 | 2 4 2 . . 6 Combat Bots Only 6 | . 4 2 . . 6 Max Kills in Single Turn 1 | 1 1 1 . . 1 Gunslinging . | . . . . . . Exploded . | . . . . . . Melee . | . . . . . . Uniques/NPCs Destroyed . | . . . . . . Combat | -11 -10 -10 -10 -9 -8 -------- Run | Yrd Mat Min Exi Min Mat Hostile Shots Fired 122 | . 50 38 . . 34 Missed 30 | . 16 7 . . 7 Hits 92 | . 34 31 . . 27 Melee 6 | . . 6 . . . Projectile 86 | . 34 25 . . 27 Critical Strikes 1 | . . 1 . . . Damage Taken 1093 | . 292 399 . . 402 Core 273 | . 79 99 . . 95 Absorbed by Shields . | . . . . . . Redirected to Shielding 12 | . . . . . 12 Core Remaining (%) 64 | 100 . . . 28 . Volleys Fired 113 | 6 18 45 . . 44 Largest 2 | 2 2 2 . . 2 Hottest 95 | 60 60 95 . . 73 Shots Fired 208 | 12 36 79 . 1 80 Gun 208 | 12 36 79 . 1 80 Cannon . | . . . . . . Launcher . | . . . . . . Special . | . . . . . . Kinetic 122 | 6 18 46 . 1 51 Thermal 86 | 6 18 33 . . 29 Explosive . | . . . . . . Electromagnetic . | . . . . . . Robot Hit Streak 20 | 8 9 4 . . 20 Robot Miss Streak 4 | 1 4 4 . 2 2 Penetration Max . | . . . . . . Secondary Targets 2 | . 1 1 . . . Max Gunslinging Chain 1 | . 1 1 . . . Shots Hit Robots 115 | 9 21 34 . . 51 Core Hits 56 | 4 10 19 . . 23 Critical Kills . | . . . . . . Critical Parts Destroyed . | . . . . . . Critical Strikes 2 | . . . . . 2 Burn 2 | . . . . . 2 Melee Attacks . | . . . . . . Impact . | . . . . . . Slashing . | . . . . . . Piercing . | . . . . . . Sneak Attacks . | . . . . . . Combat Hostiles . | . . . . . . Follow-up Attacks . | . . . . . . Damage Inflicted 1331 | 88 196 326 . . 721 Guns 1331 | 88 196 326 . . 721 Cannons . | . . . . . . Explosions . | . . . . . . Melee . | . . . . . . Ramming . | . . . . . . Kinetic 769 | 23 72 190 . . 484 Thermal 562 | 65 124 136 . . 237 Explosive . | . . . . . . Electromagnetic . | . . . . . . Impact . | . . . . . . Slashing . | . . . . . . Piercing . | . . . . . . Highest Corruption 10 | . 3 10 10 10 . Average Corruption 7 | . 2 5 10 10 . Corruption Purged . | . . . . . . Corruption Blocked . | . . . . . . Effects 63 | . 2 32 21 8 . Message Errors 15 | . . 7 5 3 . Matter Fused 9 | . 1 3 4 1 . Heat Flow Errors 11 | . . 8 3 . . Energy Discharges 11 | . 1 6 4 . . Parts Rejected 1 | . . 1 . . . Data Loss (minor) 11 | . . 5 4 2 . Misfires 3 | . . 2 . 1 . Alerts 2 | . . . 1 1 . Overload Shots . | . . . . . . Overflow Damage . | . . . . . . Projectiles . | . . . . . . Explosions . | . . . . . . Melee . | . . . . . . Knockbacks . | . . . . . . Impact . | . . . . . . Kinetic . | . . . . . . Secondary . | . . . . . . Self-Inflicted Damage . | . . . . . . Shots . | . . . . . . Rammed . | . . . . . . Targets Rammed . | . . . . . . Kicked . | . . . . . . Crushed . | . . . . . . Highest Temperature 325 | 20 32 325 240 . . Average Temperature 104 | 9 10 129 112 . . Received Heat Transfer 243 | . 24 12 . . 207 Effects 3 | . . 3 . . . Energy Bleed 1 | . . 1 . . . Interference 2 | . . 2 . . . Siege Activations . | . . . . . . Martial Activations . | . . . . . . Shielding Activations . | . . . . . . Robots Disrupted . | . . . . . . Combat Hostiles . | . . . . . . Robots Corrupted . | . . . . . . Combat Hostiles . | . . . . . . Parts Fried . | . . . . . . Impact Corruptions . | . . . . . . Robots Melted . | . . . . . . Combat Hostiles . | . . . . . . Parts Melted 1 | . . 1 . . . Heat Transferred 1611 | 150 300 310 . . 851 Parts Sabotaged . | . . . . . . Parts Stolen . | . . . . . . Parts Stripped . | . . . . . . Power Chain Reactions . | . . . . . . Alert | -11 -10 -10 -10 -9 -8 ------- Run | Yrd Mat Min Exi Min Mat Maximum Alert Level . | . . . . . . Low Security (%) 100 | 100 100 100 . 100 100 Level 1 . | . . . . . . Level 2 . | . . . . . . Level 3 . | . . . . . . Level 4 . | . . . . . . Level 5 . | . . . . . . High Security . | . . . . . . Max Security . | . . . . . . Peak Influence 157 | 5 90 87 . 6 157 Initial 3 | . . 3 . . . Average 26 | 1 28 16 . . 55 Influence Increases 726 | 15 180 238 . 6 287 Destroy 0b10 Robot/C 440 | . 120 180 . . 140 Destroy 0b10 Robot/NC 25 | 15 . . . . 10 Destroy Leader 72 | . 30 10 . . 32 Allied During Kill 3 | . . 3 . . . Successful Hack 6 | . . . . 6 . Disable Machine 30 | . . . . . 30 Lose Combat Pursuer 150 | . 30 45 . . 75 Influence Decreases 651 | 15 172 246 . 6 212 Entered New Map 5 | . . 5 . . . Time Decay 583 | 15 172 218 . 6 172 Lost Part 40 | . . . . . 40 Lost Ally 23 | . . 23 . . . Squads Dispatched 2 | . 2 . . . . Investigation 1 | . 1 . . . . Extermination . | . . . . . . Reinforcement 1 | . 1 . . . . Assault . | . . . . . . Garrison . | . . . . . . Intercept . | . . . . . . Searches Triggered . | . . . . . . Construction Impeded . | . . . . . . Haulers Reinforced . | . . . . . . Active Scanning Responses . | . . . . . . Cargo Convoy Interrupts . | . . . . . . Stealth | -11 -10 -10 -10 -9 -8 --------- Run | Yrd Mat Min Exi Min Mat Distress Signals 3 | . 2 . . . 1 Communications Jammed . | . . . . . . Distress Signals . | . . . . . . Times Spotted 40 | . 15 11 . . 14 Peak Tracking Total 8 | . 8 3 . . 7 Tactical Retreats 5 | . 1 3 . . 1 Traps | -11 -10 -10 -10 -9 -8 ------- Run | Yrd Mat Min Exi Min Mat Traps Triggered 3 | . 3 . . . . Indirectly . | . . . . . . Trap Hack Attempts . | . . . . . . Triggered . | . . . . . . Disarmed . | . . . . . . Reprogrammed . | . . . . . . Reused . | . . . . . . Traps Extracted . | . . . . . . Installed . | . . . . . . Triggered . | . . . . . . Machines | -11 -10 -10 -10 -9 -8 ---------- Run | Yrd Mat Min Exi Min Mat Machines Disabled 2 | . . . . . 2 Max in Single Turn 1 | . . . . . 1 Machines Repaired . | . . . . . . Machines Dismantled 2 | . . . . . 2 Machines Sabotaged . | . . . . . . Overloaded Fab Kills . | . . . . . . Hacking | -11 -10 -10 -10 -9 -8 --------- Run | Yrd Mat Min Exi Min Mat Machines Accessed 6 | . . . 2 1 3 Terminals 3 | . . . . 1 2 Fabricators . | . . . . . . Repair Stations . | . . . . . . Recycling Units . | . . . . . . Scanalyzers 1 | . . . . . 1 Garrison Access . | . . . . . . Total Hacks 13 | . . . 2 3 8 Successful 6 | . . . 2 2 2 Failed 6 | . . . . 1 5 Catastrophic 1 | . . . . 1 . Database Lockouts 1 | . . . . . 1 Manual 8 | . . . 1 3 4 Terminals 8 | . . . . 3 5 Fabricators . | . . . . . . Repair Stations . | . . . . . . Recycling Units . | . . . . . . Scanalyzers 3 | . . . . . 3 Garrison Access . | . . . . . . Terminal Hacks 4 | . . . 2 2 . Record 1 | . . . 1 . . Robot Analysis 2 | . . . . 2 . Proto ID Catalog 1 | . . . 1 . . Fabricator Hacks . | . . . . . . Repair Station Hacks . | . . . . . . Recycling Unit Hacks . | . . . . . . Scanalyzer 2 | . . . . . 2 Retrieve Study 2 | . . . . . 2 Garrison Access Hacks . | . . . . . . Unauthorized Hacks . | . . . . . . Terminals . | . . . . . . Fabricators . | . . . . . . Repair Stations . | . . . . . . Recycling Units . | . . . . . . Scanalyzers . | . . . . . . Garrison Access . | . . . . . . Data Cores Recovered . | . . . . . . Used . | . . . . . . Hacking Detections 4 | . . . . 1 3 Full Trace Events . | . . . . . . Feedback Events . | . . . . . . Feedback Blocked . | . . . . . . Robot Schematics Acquired . | . . . . . . Robots Built . | . . . . . . Authchips . | . . . . . . Time . | . . . . . . Total Robot Build Rating . | . . . . . . Part Schematics Acquired . | . . . . . . Parts Built . | . . . . . . Authchips . | . . . . . . Time . | . . . . . . Total Part Build Rating . | . . . . . . Part Studies Acquired 2 | . . . . . 2 Parts Repaired . | . . . . . . Time . | . . . . . . Parts Recycled . | . . . . . . Recycled Matter . | . . . . . . Retrieved Matter . | . . . . . . Retrieved Components . | . . . . . . Parts Scanalyzed . | . . . . . . Part Schematics Acquired . | . . . . . . Parts Damaged . | . . . . . . Bothacking | -11 -10 -10 -10 -9 -8 ------------ Run | Yrd Mat Min Exi Min Mat Used RIF Installer . | . . . . . . Robots Hacked . | . . . . . . Non-combat . | . . . . . . Combat . | . . . . . . Robot Hacks Applied . | . . . . . . Relay Couplers Released . | . . . . . . Fabnet Peak Effective % . | . . . . . . Robots Rewired . | . . . . . . Allies Hacked . | . . . . . . Hacks Repelled . | . . . . . . Allies | -11 -10 -10 -10 -9 -8 -------- Run | Yrd Mat Min Exi Min Mat Total Allies 3 | . . 3 . . . Largest Group 3 | . . 3 . . . Highest-Rated Group 40 | . . 40 . . . Highest-Rated Ally 16 | . . 16 . . . Total Orders . | . . . . . . Ally Attacks 12 | . . 12 . . . Total Damage 188 | . . 188 . . . Kills 3 | . . 3 . . . Allies Corrupted 1 | . . 1 . . . Allies Melted . | . . . . . . Intel | -11 -10 -10 -10 -9 -8 ------- Run | Yrd Mat Min Exi Min Mat Active Infowar (turns) 1659 | 45 470 447 . . 697 Terrain 1 | 1 . . . . . Seismic 1658 | 44 470 447 . . 697 Robot Analysis Total 2 | . . . . 2 . Derelict Logs Recovered 2 | . . 2 . . . Drone Launches . | . . . . . . Drone Recoveries . | . . . . . . Exploration | -11 -10 -10 -10 -9 -8 ------------- Run | Yrd Mat Min Exi Min Mat Turns Passed 3432 | 112 470 1284 678 191 697 Spaces Moved 1739 | 51 198 695 418 110 267 Core 10 | 4 . . . . 6 Treads 1729 | 47 198 695 418 110 261 Legs . | . . . . . . Wheels . | . . . . . . Hover . | . . . . . . Flight . | . . . . . . Fastest Speed 50 | 50 160 160 160 160 160 Average Speed 163 | 151 160 160 160 160 186 Slowest Speed 600 | 160 160 160 160 160 600 Overloaded Moves . | . . . . . . Propulsion Burnouts . | . . . . . . Robots Hopped . | . . . . . . Potential Cave-ins . | . . . . . . Cave-ins Triggered . | . . . . . . Exploration Rate (%) 41 | 4 41 98 71 18 14 Regions Visited 5 Branch Regions 3 Pre-discovered Areas 3 | . . 1 1 1 . Known Exits Taken 1 | . . 1 . . . Unknown Exits Taken 4 | 1 1 . 1 1 . Scrap Searched 1 | . . . . 1 . Spaces Dug . | . . . . . . Terrain Destroyed . | . . . . . . Melee . | . . . . . . Projectile . | . . . . . . AOE . | . . . . . . Terrain Rammed . | . . . . . . Walls Destroyed . | . . . . . . Machines Disabled . | . . . . . . Actions | -11 -10 -10 -10 -9 -8 --------- Run | Yrd Mat Min Exi Min Mat Total 2120 | 72 319 801 428 126 374 Wait 169 | 4 99 28 . 7 31 Move 1734 | 50 197 694 417 109 267 Hop . | . . . . . . Pick Up 35 | 4 5 9 4 6 7 Fast Attach 13 | 6 . 3 . . 4 Attach 9 | 1 . 2 2 . 4 Detach 3 | . . 2 . . 1 Swap 17 | 1 . 8 2 2 4 Drop 20 | . . 10 3 2 5 Fire 113 | 6 18 45 . . 44 Melee . | . . . . . . Ram . | . . . . . . Kick . | . . . . . . Crush . | . . . . . . Escape Stasis . | . . . . . . Rewire . | . . . . . . Trap . | . . . . . . Miscellaneous 7 | . . . . . 7 Route ------- -11/Scrapyard -10/Materials (discovered 3 exits: [*Mat x2] / [*Min]) -10/Mines (discovered 4 exits: [*Mat x2] / *Exi / [*Sub]) -10/Exiles -9/Mines -8/Materials History --------- Turn | Location | Event 10 | -11/Scrapyard | Discovered new exit (range 15) 113 | -11/Scrapyard | Entered Materials 250 | -10/Materials | Discovered new exit (range 13) 304 | -10/Materials | Build established: Mutant 446 | -10/Materials | Discovered new exit (range 14) 567 | -10/Materials | Discovered new exit (range 16) 583 | -10/Materials | Entered Mines 847 | -10/Mines | Identified exit to Exiles 872 | -10/Mines | YI-UF0 nonchalantly dropped a Grenade Launcher on the ground 908 | -10/Mines | Discovered new exit (range 10) 936 | -10/Mines | Deemed a non-threat by the Exiles lab entrance 1182 | -10/Mines | Discovered new exit (range 13) 1198 | -10/Mines | Assisted by bots powering up and referring to "LRC-V3" 1338 | -10/Mines | Excavation squad dispatched 1338 | -10/Mines | A large section of the Mines collapsed 1350 | -10/Mines | Core integrity fell below 50% 1350 | -10/Mines | System corruption reached 10% 1380 | -10/Mines | Discovered new exit (range 5) 1506 | -10/Mines | Learned location of Zion (-7) 1722 | -10/Mines | Build established: Scavenger-Mutant 1867 | -10/Mines | Entered Exiles 1906 | -10/Exiles | Met 8R-AWN 1936 | -10/Exiles | Met EX-HEX 1995 | -10/Exiles | Met EX-DEC 2062 | -10/Exiles | Build established: Mutant 2273 | -10/Exiles | Met EX-BIN 2299 | -10/Exiles | Aligned with FarCom system 2300 | -10/Exiles | Given EX-Vault access code 2339 | -10/Exiles | Opened EX-Vault 2351 | -10/Exiles | Found Field Lobotomy Kit 2383 | -10/Exiles | Warned to stay clear of 0b10 Research branches 2522 | -10/Exiles | Discovered new exit (range 14) 2545 | -10/Exiles | Left Exiles lab with Field Lobotomy Kit 2545 | -10/Exiles | Entered Mines 2671 | -9/Mines | Discovered new exit (range 10) 2672 | -9/Mines | Learned location of Storage (-7) 2736 | -9/Mines | Entered Materials 2736 | -8/Materials | Evolved 4 slots: Propulsion x1, Utility x3 2971 | -8/Materials | Central database locked down 3433 | -8/Materials | Self-destructed Last Messages --------------- 03240_ Acquired 28 matter. 03245_ Acquired Lgt. Armor Plating. 03281_ R-06 Scavenger collects Particle Gun. 03282_ M-13 Machinist fits Backup Plating I on R-06 Scavenger. 03327_ K-01 Serf cleans the Material Compactor. 03331_ K-01 Serf collects debris. 03337_ K-01 Serf cleans the Material Compactor. 03340_ K-01 Serf collects debris. 03342_ Connecting with Terminal... 03343_ K-01 Serf cleans the Material Compactor. 03357_ K-01 Serf collects debris. 03369_ K-01 Serf cleans the Material Compactor. 03372_ K-01 Serf destroyed. 03402_ Connecting with Terminal... 03417_ Dismantling Terminal with Plasma Cutter. 03423_ Terminal dismantled. 03426_ O-16 Technician: "IFF HANDSHAKE FAILED. SECURING TERMINAL." Map ----- +----------------------------------------------------+ | ?????????????????????????????????????????????????? | | ?????????????????????????????????????????????????? | | ?????????????????????????????????????????????????? | | ?????????????????????????????????????????????????? | | ?????????????????????????????????????????????????? | | ?????????????????????????????????????????????????? | | ?????????????????????????????????????????????????? | | ?????????????????????????????????????????????????? | | ?????????????????????????????????????????????????? | | ?????????????????????????????????????????????????? | | ?????????????????????????????????????????????????? | | ?????????????????????????????????????????????????? | | ?????????????????????????????????????????????????? | | ?????????????????????????????????????????????????? | | ?????????????????????????????????????????????????? | | ??????????????????????######?????????????????????? | | ??????????????????????? r?????????????????????? | | ??????????????????????? ?????????????????????? | | ???????????????????? """ ??o??????????????????? | | ?????????????????# """"" #?????????????????????? | | ?????????????????# """"" #?????????????????????? | | ?????????????????#u """"" ##????????????????????? | | ?????????????????# ^""" "#????????????????????? | | ?????????????????# #????????????????????? | | ?????????????????# ! w #????????????????????? | | ?????????????????# """ @ ##????????????????????? | | ???????????###+### """"" #?????????????????????? | | ?????????? """"" #?????????????????????? | | ?????????? = """"" #?????????????????????? | | ?????? ??? """ #?????????????????????? | | ?????? ??????????# ! #?????????????????????? | | ?????? ??????????# #?????????????????????? | | ?????? ??????????# """ #?????????Y???????????? | | ?????? ??????????# """"" #?????????????????????? | | ?????? ??????????# """""r #?????????????????????? | | ?????? ??????????# """"" #?????????????????????? | | ?????# #?????????# """ [#?????????????????????? | | ?????# #?????????# #?????????????????????? | | ?????+ ?????????# #?????????????????????? | | ?????# #?????????# """ ###???????????????????? | | ?????# #?????????# """"" ""#???????????????????? | | ?????# #?????????# """""% T"#???????????????????? | | ?????# #?????????# """"" ""#???????????????????? | | ?????# #######???# """ ###???????????????????? | | ?????# #???# #?????????????????????? | | ?????# ##### #???# #?????????????????????? | | ?????# #???# #???# #####?????????????????????? | | ????? #???# #???# #?????????????????????????? | | ????####???# #???## ##?????????????????????????? | | #??????????# #????# #??????????????????????????? | +----------------------------------------------------+ Best States ------------- Heat Dissipation 53 Energy Generation 18 Energy Capacity 250 Matter Stores 300 Matter Capacity 300 Sight Range 16 Terrain Scan Density 10 Armor Coverage 150 Utility Shielding 33 Evasion (%) 40 Recoil Reduction 2 Item Schematics ----------------- None Robot Schematics ------------------ None Fabricated ------------ Nothing Repaired ---------- Nothing Studied --------- Autogun | -8/Materials | Hacked Grenade Launcher | -8/Materials | Hacked Alien Tech Used ----------------- None Achievements -------------- None Challenges ------------ None Game ------ Seed TripodGhostCape Manual? 0 Play Time 00:20:30 Cumulative 338.8 hours Start 2026.04.14 @ 20:34:52 End 2026.04.14 @ 20:51:08 Sessions 1 Manual Loads 0 Difficulty Rogue Special Mode None Game No. 188 Rogue 184 Adventurer 4 Explorer 0 Win Type - Total 13 Types 10/0/3/0/0/0/0/0/0/0 Lore% 88 Gallery% 75 Achievement% 60 Wizard Run 0 Options --------- Layout 1 ASCII 0 Keyboard 1 Movement Numpad Keybinds 1 Fullscreen 1 Font 24/Smallcaps Map View 50x35 Zoom Use 0% Tactical HUD 1 Map Filters NONE Filters NONE Steam 1 RUN: 92f3acca-1805-488e-9631-986180da45b0